bitfinex-derivatives/quotes_SOLF0:USTF0_20250212
["timestamp","ask_amount","ask_price","bid_price","bid_amount"]
[1739378810795,0.0354657,191.28,191.25,5.2287]
[1739378810997,0.0354657,191.28,191.25,5.2634542]
[1739378811997,0.0354657,191.28,191.25,0.0347542]
[1739378812202,0.0354657,191.28,191.27,5.2284]
[1739378812999,0.0354657,191.28,191.26,5.2286]
[1739378813204,23.7372089,191.28,191.25,0.0347542]
[1739378813704,0.0354657,191.28,191.26,5.2287]
[1739378814002,0.0354657,191.28,191.25,0.0347542]
[1739378814408,23.7017432,191.34,191.25,0.0347542]
[1739378814704,25.2628432,191.38,191.25,0.0347542]
[1739378814998,28.9273432,191.38,191.32,5.2269]
[1739378815197,23.7017432,191.38,191.24,23.7017432]
[1739378815403,5.2251,191.4,191.34,5.2264]
[1739378815999,5.2251,191.4,191.24,23.7017432]
[1739378816497,5.2251,191.4,191.3,0.03700466]
[1739378816699,23.7017432,191.38,191.3,0.03700466]
[1739378816906,23.7017432,191.38,191.21,23.7017432]
[1739378817097,23.7017432,191.38,191.32,0.03450351]
[1739378817301,5.2259,191.37,191.31,5.2271]
[1739378817498,5.2259,191.37,191.33,0.03618546]
[1739378817699,23.7017432,191.38,191.33,0.03618546]
[1739378818008,23.7017432,191.35,191.29,5.2277]
[1739378818208,23.7017432,191.32,191.18,23.7017432]
[1739378819006,23.7017432,191.32,191.27,5.2282]
[1739378819402,0.0342382,191.31,191.27,5.2282]
[1739378819608,28.9296432,191.29,191.28,0.03526441]
[1739378819804,28.9296432,191.29,191.24,5.2291]
[1739378820507,23.7017432,191.29,191.24,5.2291]
[1739378820710,23.7017432,191.26,191.18,1.5695]
[1739378820899,23.7017432,191.26,191.25,0.0385401]
[1739378821410,23.7017432,191.26,191.17,1.5536]
[1739378821604,23.7017432,191.3,191.13,1.6535]
[1739378821605,23.7017432,191.23,191.13,1.6535]
[1739378822514,5.2299,191.22,191.17,5.2311]
[1739378822809,23.74089472,191.2,191.16,0.04012224]
[1739378823109,5.2315,191.16,191.09,5.2331]
[1739378823513,23.7017432,191.17,191.05,10.24315036]
[1739378823709,5.2323,191.13,191.07,5.2337]
[1739378823921,23.7017432,191.17,191.05,3.1863]
[1739378824123,0.03471187,191.12,191.08,0.03916739]
[1739378824825,23.7017432,191.11,191.08,0.03916739]
[1739378826118,5.2334,191.09,191.08,0.03916739]
[1739378826314,23.7017432,191.11,191.08,0.03916739]
[1739378826518,5.2332,191.1,191.08,0.03916739]
[1739378826721,0.03471187,191.12,191.08,0.03916739]
[1739378827316,0.03471187,191.12,191.08,5.27256739]
[1739378828025,0.03471187,191.12,191.09,5.2331]
[1739378828527,0.03471187,191.12,191.08,0.03916739]
[1739378829724,5.2332,191.1,191.08,0.03916739]
[1739378830520,5.2334,191.09,191.08,0.03916739]
[1739378832629,5.2341,191.07,191.0,3.1527]
[1739378832824,23.7017432,191.11,191.0,3.1527]
[1739378833024,23.7017432,191.08,191.0,3.1527]
[1739378833224,23.7017432,191.08,190.81,278.18298412]
[1739378833225,23.7017432,191.08,190.91,23.7017432]
[1739378833429,23.7017432,191.08,190.93,3.2294]
[1739378833730,5.2353,191.03,190.98,5.2361]
[1739378833932,0.03637698,191.02,190.99,0.03695685]
[1739378834121,23.7017432,191.05,190.99,0.03695685]
[1739378834831,2.67516338,191.08,190.99,0.03695685]
[1739378834832,2.67516338,191.08,191.01,5.2354]
[1739378835225,5.27445587,191.06,191.01,5.2354]
[1739378835830,5.27445587,191.06,191.02,5.2352]
[1739378838234,0.04015587,191.06,191.04,5.2345]
[1739378838429,0.04015587,191.06,191.0,25.2718432]
[1739378838735,23.7017432,191.11,191.03,0.0378685]
[1739378839034,5.2334,191.09,191.04,5.2347]
[1739378839333,5.26854473,191.09,191.04,5.2347]
[1739378839533,0.03514473,191.09,191.06,5.2339]
[1739378841331,0.03514473,191.09,191.03,0.0378685]
[1739378843032,0.03514473,191.09,191.08,5.2336]
[1739378843833,5.2313,191.17,191.13,5.2321]
[1739378844431,5.2309,191.19,191.06,23.7017432]
[1739378844928,0.03465101,191.14,191.11,0.03488593]
[1739378845434,0.03465101,191.14,191.13,5.2321]
[1739378847234,5.2304,191.2,191.16,5.2312]
[1739378847436,25.2663432,191.23,191.09,23.7017432]
[1739378847437,1.5646,191.23,191.09,23.7017432]
[1739378847734,5.2301,191.21,191.17,5.2309]
[1739378848534,5.26885932,191.21,191.17,5.26558377]
[1739378849435,0.03875932,191.21,191.17,0.03468377]
[1739378853129,5.2309,191.19,191.17,0.03468377]
[1739378854040,0.03875932,191.21,191.17,0.03468377]
[1739378854336,5.2303,191.2,191.17,5.26578377]
[1739378856938,0.03875932,191.21,191.17,0.03468377]
[1739378857633,5.2309,191.18,191.17,0.03468377]
[1739378857935,23.7017432,191.2,191.04,194.1369]
[1739378858142,5.2321,191.14,191.1,5.2329]
[1739378859044,5.27214205,191.14,191.1,5.26980251]
[1739378859244,0.04004205,191.14,191.12,5.2323]
[1739378859938,0.04004205,191.14,191.1,0.03690251]
[1739378860137,5.2326,191.12,191.1,0.03690251]
[1739378861141,0.04004205,191.14,191.1,0.03690251]
[1739378861343,0.04004205,191.14,191.11,5.2327]
[1739378861741,0.04004205,191.14,191.1,0.03690251]
[1739378863146,0.04004205,191.14,191.12,5.2324]
[1739378863538,5.2324,191.13,191.1,0.03690251]
[1739378864242,5.2328,191.11,191.1,0.03690251]
[1739378864746,0.04004205,191.14,190.99,1.5328]
[1739378864747,14.79317976,191.12,190.99,1.5328]
[1739378865047,14.79317976,191.09,190.98,3.09]
[1739378865741,5.2342,191.07,191.02,5.235]
[1739378865937,23.68709974,191.09,191.02,5.235]
[1739378866141,0.0360837,191.05,191.02,5.26858475]
[1739378866447,0.0360837,191.05,191.04,5.2347]
[1739378867145,0.0360837,191.05,191.03,5.2349]
[1739378867550,0.0360837,191.05,191.02,0.03358475]
[1739378869249,0.0360837,191.05,191.02,5.26878475]
[1739378869445,0.0360837,191.05,191.02,0.03358475]
[1739378871154,0.0360837,191.05,191.02,5.26878475]
[1739378872553,0.0360837,191.05,191.02,0.03358475]
[1739378872751,0.0360837,191.05,191.04,5.2347]
[1739378880251,1.606,191.17,191.02,23.72068449]
[1739378880557,1.568,191.18,191.05,23.68709974]
[1739378880855,1.568,191.18,191.06,1.544]
[1739378881355,0.03659912,191.14,191.11,5.2326]
[1739378882056,0.03659912,191.14,191.13,5.2323]
[1739378883252,86.50435819,191.26,191.11,23.68709974]
[1739378883456,86.50435819,191.26,191.14,23.68709974]
[1739378883652,86.50435819,191.26,191.15,1.5058]
[1739378883851,25.30369974,191.3,191.15,1.5058]
[1739378884053,0.96127566,191.29,191.16,1.5086]
[1739378884362,0.03720981,191.24,191.21,5.26632836]
[1739378885054,0.03720981,191.24,191.21,0.03642836]
[1739378885254,86.50435819,191.33,191.21,0.03642836]
[1739378885450,86.50435819,191.33,191.23,23.68709974]
[1739378885655,86.50435819,191.33,191.29,5.2278]
[1739378885854,86.50435819,191.33,191.24,1.5058]
[1739378886252,86.50435819,191.33,191.31,5.2272]
[1739378886555,0.03865362,191.3,191.27,0.03626741]
[1739378886753,86.50435819,191.33,191.27,0.03626741]
[1739378886952,6.8423,191.38,191.27,0.03626741]
[1739378887562,5.2259,191.37,191.27,0.03626741]
[1739378887753,1.6166,191.38,191.27,0.03626741]
[1739378887951,0.02135095,191.34,191.27,5.26446741]
[1739378888357,5.2275,191.31,191.27,0.03626741]
[1739378888558,23.68709974,191.3,191.27,0.03626741]
[1739378889655,23.68709974,191.3,191.11,25.25149974]
[1739378889860,23.68709974,191.27,191.12,3.1396]
[1739378890056,23.68709974,191.27,191.2,5.2303]
[1739378890057,28.91559974,191.27,191.2,5.2303]
[1739378890262,1.5534,191.29,191.14,23.68709974]
[1739378890658,0.0345569,191.23,191.2,23.68709974]
[1739378890966,190.0,191.48,191.2,23.68709974]
[1739378890967,23.68709974,191.42,191.21,3.1337]
[1739378891262,5.2251,191.4,191.32,5.2268]
[1739378891764,5.2251,191.4,191.27,23.68709974]
[1739378892063,0.02306146,191.38,191.34,0.03975875]
[1739378892861,0.02306146,191.38,191.37,5.2257]
[1739378893265,5.2234,191.46,191.34,0.03975875]
[1739378893561,5.223,191.47,191.41,5.2245]
[1739378893964,5.2226,191.49,191.43,5.224]
[1739378894165,23.68709974,191.54,191.36,23.68709974]
[1739378894366,23.68709974,191.54,191.44,0.03748523]
[1739378895463,5.222,191.51,191.44,5.26118523]
[1739378895863,28.90909974,191.51,191.44,5.26118523]
[1739378896465,23.68709974,191.51,191.44,0.03748523]
[1739378896665,23.68709974,191.48,191.44,0.03748523]
[1739378896861,23.68709974,191.45,191.31,3.211]
[1739378898065,0.03305621,191.4,191.36,0.0354324]
[1739378898266,23.68709974,191.48,191.33,23.68709974]
[1739378898465,0.03342991,191.4,191.36,0.03983876]
[1739378898862,23.68709974,191.48,191.34,1.6689]
[1739378899062,8.523e-05,191.4,191.36,0.03352091]
[1739378899262,23.68709974,191.55,191.39,23.68709974]
[1739378899461,0.96008404,191.54,191.39,23.68709974]
[1739378899667,23.68709974,191.52,191.36,23.68709974]
[1739378899867,5.2226,191.49,191.42,5.2241]
[1739378900266,5.2226,191.49,191.44,0.03742078]
[1739378900667,3.9233,191.56,191.44,0.03742078]
[1739378900968,0.96002036,191.55,191.42,23.68709974]
[1739378901171,0.96002036,191.55,191.48,0.0390456]
[1739378901571,3.1755,191.56,191.48,0.0390456]
[1739378902070,3.1755,191.56,191.49,5.2223]
[1739378902071,5.221,191.55,191.49,5.2223]
[1739378902270,3.1755,191.56,191.48,0.0390456]
[1739378902772,1.5446,191.56,191.48,0.0390456]
[1739378903070,6.7651,191.56,191.48,0.0390456]
[1739378903671,5.2208,191.55,191.48,5.2615456]
[1739378904069,1.5446,191.56,191.48,5.2615456]
[1739378904376,5.2211,191.54,191.48,5.2615456]
[1739378905376,5.2211,191.54,191.48,0.0390456]
[1739378905572,5.2211,191.54,191.49,5.2224]
[1739378906669,5.2214,191.53,191.49,5.2224]
[1739378908077,5.2209,191.55,191.51,5.2218]
[1739378908677,5.2202,191.58,191.51,0.0347362]
[1739378909270,5.2202,191.58,191.53,5.2213]
[1739378909873,5.2204,191.57,191.53,5.2213]
[1739378910071,23.68709974,191.6,191.45,23.68709974]
[1739378910277,23.68709974,191.6,191.53,0.0383138]
[1739378910678,1.6292,191.61,191.53,0.0383138]
[1739378912184,5.2197,191.6,191.56,5.2204]
[1739378913987,1.6292,191.61,191.54,5.2208]
[1739378914385,1.6292,191.61,191.53,0.0383138]
[1739378914683,23.68709974,191.66,191.53,0.0383138]
[1739378914886,2.43,191.67,191.53,23.68709974]
[1739378915088,0.9593904,191.66,191.58,0.03862688]
[1739378915383,2.43,191.67,191.58,0.03862688]
[1739378915384,1.6628,191.67,191.58,0.03862688]
[1739378916088,23.68709974,191.72,191.58,0.03862688]
[1739378916382,0.9592156,191.71,191.59,23.68709974]
[1739378916586,5.2167,191.71,191.65,5.2178]
[1739378916787,5.2167,191.71,191.63,0.03790484]
[1739378918083,5.2167,191.71,191.66,5.2175]
[1739378918489,5.217,191.69,191.63,0.03790484]
[1739378919187,1.6294,191.73,191.63,0.03790484]
[1739378919586,1.6294,191.73,191.63,1.58670484]
[1739378919886,5.2165,191.71,191.66,5.2176]
[1739378920287,5.2165,191.71,191.59,23.68709974]
[1739378920288,1.6294,191.73,191.67,0.03968971]
[1739378920488,23.68709974,191.72,191.67,0.03968971]
[1739378920684,5.2175,191.67,191.56,25.23049974]
[1739378921189,1.6294,191.73,191.6,0.03884039]
[1739378921488,1.6294,191.73,191.62,23.68709974]
[1739378921688,23.68709974,191.78,191.65,0.03358499]
[1739378921890,23.68709974,191.73,191.65,0.03358499]
[1739378922084,23.68709974,191.7,191.67,0.03518156]
[1739378922287,23.68709974,191.7,191.6,5.2194]
[1739378922487,1.5133,191.77,191.54,1.6665]
[1739378922488,23.68709974,191.67,191.54,1.6665]
[1739378922892,0.95919851,191.66,191.54,1.6665]
[1739378923390,23.68709974,191.64,191.51,1.5434]
[1739378923590,0.03526679,191.62,191.58,0.0364944]
[1739378923786,5.2192,191.61,191.58,0.0364944]
[1739378926188,0.03526679,191.62,191.58,0.0364944]
[1739378926395,5.25416679,191.62,191.58,5.2563944]
[1739378926594,0.03526679,191.62,191.58,0.0364944]
[1739378927196,23.68709974,191.61,191.48,1.6477]
[1739378927399,23.68709974,191.61,191.48,25.33479974]
[1739378927993,23.68709974,191.61,191.48,1.6477]
[1739378928390,0.03686161,191.56,191.53,0.03366265]
[1739378928907,5.25736161,191.56,191.53,0.03366265]
[1739378930496,0.03686161,191.56,191.53,0.03366265]
[1739378930703,23.68709974,191.54,191.39,23.68709974]
[1739378930903,23.68709974,191.54,191.39,26.87589974]
[1739378931102,1.5664,191.55,191.42,23.68709974]
[1739378931798,0.03790244,191.5,191.47,0.03687055]
[1739378932603,23.68709974,191.66,191.48,23.68709974]
[1739378932898,23.68709974,191.66,191.51,23.68709974]
[1739378933103,5.2186,191.64,191.56,5.2203]
[1739378933298,1.5072,191.67,191.51,23.68709974]
[1739378933498,1.5072,191.67,191.57,23.68709974]
[1739378933699,110.19145793,191.75,191.58,3.0419]
[1739378933904,0.03950145,191.64,191.6,23.72277575]
[1739378934101,1.5072,191.74,191.63,23.68709974]
[1739378934303,1.5072,191.74,191.66,5.2176]
[1739378935101,6.7229,191.74,191.67,5.2173]
[1739378935306,0.02801995,191.72,191.68,0.0383839]
[1739378936807,0.02801995,191.72,191.71,5.2164]
[1739378938605,0.02801995,191.72,191.69,1.5748]
[1739378939312,0.02801995,191.72,191.71,5.2164]
[1739378940011,1.661,191.81,191.75,5.2151]
[1739378940215,5.2137,191.82,191.75,5.2151]
[1739378940606,5.213,191.84,191.77,5.2146]
[1739378941308,1.602,191.86,191.79,0.03443328]
[1739378941508,5.2132,191.83,191.79,0.03443328]
[1739378942506,1.602,191.86,191.69,1.5748]
[1739378942710,1.602,191.86,191.63,23.68709974]
[1739378942711,23.68709974,191.81,191.63,23.68709974]
[1739378943011,5.2153,191.76,191.7,5.2167]
[1739378943412,23.68709974,191.84,191.66,23.68709974]
[1739378943606,5.2146,191.78,191.72,5.2159]
[1739378943808,0.03367951,191.77,191.74,0.03881343]
[1739378944004,1.602,191.86,191.75,23.68709974]
[1739378944309,23.68709974,191.93,191.75,23.68709974]
[1739378944509,2.46681184,191.92,191.78,23.68709974]
[1739378944807,5.2119,191.88,191.82,5.2133]
[1739378945113,1.5085,191.92,191.82,5.2133]
[1739378945317,0.95820483,191.91,191.83,0.03515087]
[1739378945512,5.2114,191.9,191.84,5.2129]
[1739378945706,1.5085,191.92,191.83,0.03515087]
[1739378946508,1.5085,191.92,191.85,5.2126]
[1739378946815,1.5085,191.92,191.83,0.03515087]
[1739378947017,0.95814315,191.91,191.83,0.03515087]
[1739378947713,23.68709974,191.9,191.83,0.03515087]
[1739378947915,1.5085,191.92,191.83,0.03515087]
[1739378948210,5.2113,191.91,191.86,5.2123]
[1739378948621,5.2113,191.91,191.87,0.03825888]
[1739378948811,1.5085,191.92,191.88,5.2118]
[1739378950414,23.68709974,191.99,191.87,0.03825888]
[1739378950606,0.957876,191.98,191.85,23.68709974]
[1739378950915,23.68709974,192.02,191.91,0.03381876]
[1739378951215,23.68709974,191.99,191.91,0.03381876]
[1739378951412,23.68709974,191.96,191.84,1.5208]
[1739378951613,23.68709974,191.96,191.9,0.03583125]
[1739378952321,0.95794031,191.95,191.9,0.03583125]
[1739378952822,5.2105,191.93,191.9,0.03583125]
[1739378953011,1.4997,191.94,191.83,3.1125]
[1739378953211,25.31789974,192.02,191.87,23.68709974]
[1739378953412,5.2094,191.97,191.92,5.2106]
[1739378953814,5.2094,191.97,191.93,0.03864036]
[1739378954317,25.31789974,192.02,191.93,0.03864036]
[1739378954619,23.68709974,191.96,191.84,1.6312]
[1739378954821,0.95783737,191.95,191.83,3.1125]
[1739378955118,23.68709974,191.93,191.79,23.68709974]
[1739378955320,23.68709974,191.93,191.8,3.309]
[1739378955521,5.212,191.88,191.83,5.2131]
[1739378955717,5.24849741,191.88,191.85,0.03754836]
[1739378957020,5.2121,191.87,191.85,0.03754836]
[1739378957214,0.03649741,191.88,191.85,5.25014836]
[1739378957522,5.2106,191.93,191.85,23.7246481]
[1739378957717,24.44369974,191.99,191.85,23.68709974]
[1739378958020,0.95795327,191.98,191.89,5.2114]
[1739378958319,5.2101,191.95,191.89,5.2114]
[1739378958718,5.2101,191.95,191.9,0.03569837]
[1739378958919,5.2101,191.95,191.9,5.24689837]
[1739378959119,23.68709974,191.96,191.9,0.03569837]
[1739378959313,23.68709974,191.93,191.83,5.2131]
[1739378959515,2.51916249,191.92,191.83,5.2131]
[1739378959716,5.212,191.88,191.83,5.2131]
[1739378959916,3.2073,191.92,191.83,5.2131]
[1739378960119,0.95815157,191.91,191.83,5.2131]
[1739378960520,0.03472282,191.89,191.85,0.03345362]
[1739378961721,5.2123,191.86,191.85,0.03345362]
[1739378961917,0.03472282,191.89,191.78,5.2143]
[1739378962122,23.68709974,191.9,191.78,5.2143]
[1739378962620,5.2127,191.85,191.79,5.2142]
[1739378963122,0.03760326,191.84,191.8,0.03377266]
[1739378963622,0.03760326,191.84,191.83,5.2132]
[1739378964818,24.44579974,191.99,191.82,23.68709974]
[1739378965021,0.95790399,191.98,191.85,23.68709974]
[1739378965322,25.26859974,192.02,191.88,23.68709974]
[1739378965519,0.95775429,192.01,191.88,23.68709974]
[1739378965912,0.95775429,192.01,191.93,0.03602948]
[1739378965913,0.03375104,191.96,191.93,0.03602948]
[1739378967216,23.72085078,191.96,191.83,1.5702]
[1739378967414,0.95784375,191.98,191.83,1.5702]
[1739378967415,23.68709974,191.93,191.83,1.5702]
[1739378967616,1.5649,191.92,191.83,1.5702]
[1739378967922,38.15321471,191.98,191.83,1.5702]
[1739378968123,5.2109,191.92,191.87,5.2121]
[1739378968320,0.03717571,191.92,191.89,0.03808729]
[1739378969214,1.5649,191.99,191.89,0.03808729]
[1739378969721,5.2081,192.02,191.97,5.2091]
[1739378970220,39.69591471,192.07,191.9,38.15321471]
[1739378970427,0.0326048,192.01,191.98,5.24401493]
[1739378971427,0.0326048,192.01,191.99,5.2087]
[1739378971826,0.0326048,192.01,191.98,0.03511493]
[1739378972428,0.0326048,192.01,192.0,5.2085]
[1739378972730,0.0326048,192.01,191.98,0.03511493]
[1739378974132,5.2411048,192.01,191.98,0.03511493]
[1739378974526,0.0326048,192.01,191.98,0.03511493]
[1739378974928,5.2088,191.99,191.98,0.03511493]
[1739378975226,38.18581951,192.01,191.9,5.211]
[1739378975421,5.2095,191.97,191.9,5.211]
[1739378975621,5.2095,191.97,191.87,38.15321471]
[1739378975821,5.2095,191.97,191.91,5.211]
[1739378976027,5.21,191.95,191.85,3.1223]
[1739378976228,5.21,191.95,191.92,0.03851978]
[1739378976433,5.21,191.95,191.85,3.1223]
[1739378976434,5.21,191.95,191.88,5.2116]
[1739378976730,5.24597976,191.95,191.92,0.03637586]
[1739378977228,0.03597976,191.95,191.92,0.03637586]
[1739378978925,1.5427,192.07,191.93,38.15321471]
[1739378979125,86.50435819,192.1,191.98,38.15321471]
[1739378979333,86.50435819,192.1,192.06,5.2069]
[1739378979534,5.2056,192.11,192.06,5.2069]
[1739378980032,0.03173998,192.1,192.07,0.03412411]
[1739378980727,5.2062,192.09,192.07,0.03412411]
[1739378980932,0.03173998,192.1,192.07,0.03412411]
[1739378981234,5.2064,192.08,192.07,0.03412411]
[1739378981439,0.03173998,192.1,191.98,5.2089]
[1739378981836,0.95719668,192.11,191.98,5.2089]
[1739378982238,38.15321471,192.1,191.95,38.15321471]
[1739378982439,0.95719668,192.09,191.94,3.1827]
[1739378982636,0.03573267,192.04,192.01,0.03635022]
[1739378983835,38.18894738,192.04,191.87,38.15321471]
[1739378984136,0.95732509,192.03,191.87,38.15321471]
[1739378984437,5.2096,191.97,191.87,38.15321471]
[1739378984835,5.2089,191.99,191.93,5.2103]
[1739378985032,0.03297077,191.94,191.93,5.2103]
[1739378985230,5.2089,191.99,191.93,5.2103]
[1739378985436,0.03444934,191.95,191.94,5.2102]
[1739378985638,5.2085,192.01,191.93,38.15321471]
[1739378985840,1.5805,192.05,191.93,38.15321471]
[1739378986037,1.5805,192.05,191.87,38.15321471]
[1739378986038,39.11066948,192.04,191.87,38.15321471]
[1739378986237,38.15321471,192.01,191.87,38.15321471]
[1739378986632,5.2101,191.95,191.9,5.2111]
[1739378986940,5.2101,191.95,191.92,0.03781089]
[1739378987241,0.03318045,191.96,191.92,0.03781089]
[1739378987433,1.5805,192.05,191.92,0.03781089]
[1739378987636,1.5805,192.05,191.9,38.15321471]
[1739378987836,5.208,192.03,191.97,5.2093]
[1739378988535,0.03458452,192.02,191.98,0.03896191]
[1739378989038,0.03458452,192.02,191.98,5.24786191]
[1739378989242,0.03458452,192.02,191.98,0.03896191]
[1739378989942,0.03458452,192.02,192.01,5.2083]
[1739378991733,0.03458452,192.02,191.98,0.03896191]
[1739378993644,0.03458452,192.02,191.98,5.24796191]
[1739378994237,5.2078,192.03,191.98,0.03896191]
[1739378994444,1.6391,192.12,191.98,0.03896191]
[1739378994745,5.207,192.06,191.97,3.2455]
[1739378995045,1.6391,192.12,191.97,3.2455]
[1739378995245,5.2075,192.05,191.97,3.2455]
[1739378995446,1.6391,192.12,192.03,0.03744133]
[1739378995748,0.95721824,192.11,192.06,0.03608344]
[1739378996041,5.2069,192.07,192.06,0.03608344]
[1739378996937,5.208,192.03,191.97,1.5932]
[1739378997647,5.208,192.03,191.99,5.2088]
[1739378998044,5.24152066,192.03,191.99,5.24656269]
[1739378998445,0.03352066,192.03,191.99,0.03776269]
[1739378999445,38.15321471,192.16,191.99,38.1909774]
[1739378999641,2.60840777,192.15,191.99,38.15321471]
[1739378999841,0.95710777,192.14,191.99,38.15321471]
[1739379000642,0.95710777,192.14,192.05,0.03784006]
[1739379000844,5.2059,192.1,192.05,0.03784006]
[1739379001744,1.6513,192.15,192.05,0.03784006]
[1739379002748,38.15321471,192.13,192.05,0.03784006]
[1739379003146,6.16258615,192.12,192.05,0.03784006]
[1739379003346,1.5021,192.14,192.05,0.03784006]
[1739379003750,5.2056,192.11,192.05,0.03784006]
[1739379004354,1.5021,192.14,192.05,0.03784006]
[1739379004355,5.2059,192.1,192.05,0.03784006]
[1739379004850,1.6513,192.15,192.05,0.03784006]
[1739379005156,0.95701745,192.14,192.05,0.03784006]
[1739379005343,1.6513,192.15,192.05,0.03784006]
[1739379005545,1.6513,192.15,192.05,38.19105477]
[1739379006253,86.50435819,192.16,192.05,38.19105477]
[1739379006453,86.50435819,192.15,192.05,38.19105477]
[1739379006653,86.50435819,192.15,192.05,38.15321471]
[1739379006845,86.50435819,192.15,192.08,0.03307984]
[1739379007255,86.50435819,192.15,192.12,5.205]
[1739379007451,86.50435819,192.15,192.11,38.15321471]
[1739379007651,69.01815819,192.15,192.14,43.35801471]
[1739379007855,66.48178296,192.15,192.14,43.35801471]
[1739379008452,66.48178296,192.15,192.14,5.2048]
[1739379009744,38.15321471,192.19,192.02,38.15321471]
[1739379009948,1.5788,192.16,192.02,38.15321471]
[1739379010146,5.2054,192.12,192.02,38.15321471]
[1739379010349,39.73201471,192.16,192.02,38.15321471]
[1739379010549,38.15321471,192.13,191.99,38.15321471]
[1739379011152,5.24365542,192.08,192.04,0.03411679]
[1739379011555,0.03715542,192.08,192.04,0.03411679]
[1739379011857,5.2067,192.07,192.04,0.03411679]
[1739379012260,5.207,192.06,192.04,0.03411679]
[1739379012458,0.03715542,192.08,192.0,5.2084]
[1739379012657,0.03715542,192.08,191.96,38.15321471]
[1739379012857,0.03715542,192.08,191.95,64.97275124]
[1739379013055,5.2075,192.04,191.99,5.2087]
[1739379013260,5.2075,192.04,191.95,64.97275124]
[1739379013552,0.03523513,192.01,191.98,0.0331185]
[1739379013759,0.03523513,192.01,191.99,5.2088]
[1739379013960,0.03528334,192.02,191.99,43.36201471]
[1739379014162,5.2058,192.11,191.99,38.15321471]
[1739379014458,1.5217,192.15,192.06,38.15321471]
[1739379014657,1.5217,192.15,192.09,38.15321471]
[1739379015358,0.03598887,192.14,192.1,0.0344213]
[1739379016258,0.03598887,192.14,192.11,5.2055]
[1739379016562,0.03598887,192.14,192.1,0.0344213]
[1739379017268,1.66238887,192.14,192.1,0.0344213]
[1739379017560,0.03598887,192.14,192.1,0.0344213]
[1739379019063,0.03598887,192.14,192.11,5.2053]
[1739379019461,0.03598887,192.14,192.1,0.0344213]
[1739379019856,0.03598887,192.14,192.0,38.15321471]
[1739379020058,0.95682582,192.18,192.05,5.207]
[1739379020563,5.2056,192.11,192.05,5.207]
[1739379021165,0.03624614,192.1,192.06,0.03858363]
[1739379022467,5.2064,192.09,192.06,0.03858363]
[1739379022866,0.03624614,192.1,192.06,0.03858363]
[1739379024665,5.24204614,192.1,192.06,0.03858363]
[1739379025169,0.03624614,192.1,192.06,5.24538363]
[1739379025470,0.03624614,192.1,192.06,0.03858363]
[1739379027164,0.03624614,192.1,192.09,5.2061]
[1739379039176,1.6058,192.18,192.09,23.41846101]
[1739379039383,1.6058,192.18,192.15,5.2044]
[1739379039676,1.5359,192.21,192.12,23.41846101]
[1739379040079,3.1651,192.27,192.15,23.41846101]
[1739379040275,3.1651,192.27,192.22,5.2025]
[1739379040276,6.7011,192.26,192.22,5.2025]
[1739379040477,0.03416402,192.23,192.19,0.03615112]
[1739379041278,86.30322684,192.28,192.22,23.41846101]
[1739379041681,86.30322684,192.28,192.27,5.2012]
[1739379041876,87.84282684,192.35,192.25,23.41846101]
[1739379042580,87.84282684,192.35,192.28,0.0332698]
[1739379043179,87.84282684,192.35,192.29,5.2004]
[1739379043380,87.84282684,192.35,192.28,0.0332698]
[1739379043577,125.83537438,192.35,192.28,0.0332698]
[1739379043777,5.1995,192.34,192.28,0.0332698]
[1739379043983,87.84282684,192.35,192.28,0.0332698]
[1739379044381,5.1996,192.34,192.28,0.0332698]
[1739379044779,87.84282684,192.35,192.19,37.99254754]
[1739379045076,87.84282684,192.35,192.11,103.06]
[1739379045077,5.2008,192.29,192.2,5.203]
[1739379045276,37.99254754,192.33,192.19,37.99254754]
[1739379046077,0.0332698,192.28,192.24,0.03949805]
[1739379046380,37.99254754,192.33,192.16,37.99254754]
[1739379046576,5.2344698,192.28,192.24,0.03651477]
[1739379046784,5.2344698,192.28,192.19,5.2033]
[1739379046981,0.0332698,192.28,192.16,37.99254754]
[1739379047182,5.2017,192.26,192.17,5.2037]
[1739379047385,1.5404,192.25,192.17,5.2037]
[1739379047980,1.5404,192.25,192.16,37.99254754]
[1739379047981,0.0377436,192.23,192.19,0.03807325]
[1739379049289,0.0377436,192.23,192.2,37.99254754]
[1739379049580,0.0377436,192.23,192.19,0.03807325]
[1739379050485,5.2401436,192.23,192.19,0.03807325]
[1739379050883,0.0377436,192.23,192.19,0.03807325]
[1739379051186,5.2026,192.22,192.19,0.03807325]
[1739379052091,6.7976,192.22,192.19,0.03807325]